bitfinex/quotes_SOLUSD_20251030
["timestamp","ask_amount","ask_price","bid_price","bid_amount"]
[1761851826027,14.32262722,181.3,181.29,0.2]
[1761851826319,14.32262722,181.3,181.28,1e-08]
[1761851826320,19.26573511,181.29,181.28,1e-08]
[1761851826697,10.45882769,181.29,181.28,1e-08]
[1761851827097,9.78882769,181.29,181.28,1e-08]
[1761851827301,14.32262722,181.3,181.28,1e-08]
[1761851827500,14.99262722,181.3,181.28,1e-08]
[1761851828214,8.80690742,181.29,181.28,1e-08]
[1761851828416,18.59573511,181.29,181.28,1e-08]
[1761851828809,19.26573511,181.29,181.28,1e-08]
[1761851829416,19.26573511,181.29,181.26,1e-08]
[1761851829417,9.78882769,181.28,181.26,1e-08]
[1761851829597,22.62194598,181.27,181.17,9.50690742]
[1761851829818,8.80690742,181.23,181.17,8.80690742]
[1761851830025,8.80690742,181.23,181.18,0.7]
[1761851830215,8.80690742,181.24,181.18,9.50690742]
[1761851830797,2.88481242,181.27,181.22,8.80690742]
[1761851830999,19.30608416,181.29,181.24,8.80690742]
[1761851831420,19.30608416,181.29,181.25,0.7]
[1761851831620,19.30608416,181.29,181.25,9.50690742]
[1761851831820,19.25573511,181.28,181.19,82.292]
[1761851831996,8.80690742,181.27,181.22,8.80690742]
[1761851832199,8.80690742,181.25,181.2,8.80690742]
[1761851832506,8.80690742,181.23,181.19,61.7]
[1761851832826,8.80690742,181.23,181.18,8.80690742]
[1761851833127,9.46690742,181.23,181.18,8.80690742]
[1761851833512,19.31354154,181.22,181.16,6.89098999]
[1761851833713,19.31354154,181.22,181.18,8.80690742]
[1761851833943,19.31354154,181.22,181.17,9.50690742]
[1761851834118,19.31354154,181.22,181.19,8.80690742]
[1761851834323,5.51754579,181.24,181.21,8.80690742]
[1761851834521,5.51663264,181.27,181.23,8.80690742]
[1761851834722,3.5439986,181.32,181.26,8.80690742]
[1761851834723,5.51602404,181.29,181.26,8.80690742]
[1761851834907,5.51480725,181.33,181.28,8.80690742]
[1761851835105,5.51456703,181.34,181.32,8.80690742]
[1761851835528,5.5151114,181.32,181.27,0.68]
[1761851835702,5.80738766,181.31,181.25,0.68]
[1761851835900,5.80738766,181.3,181.25,6.48738766]
[1761851836400,6.51738766,181.3,181.25,6.48738766]
[1761851836903,6.51738766,181.3,181.25,0.68]
[1761851837324,5.80738766,181.3,181.25,0.68]
[1761851837728,5.80738766,181.31,181.25,0.68]
[1761851837931,5.80738766,181.29,181.22,5.80738766]
[1761851838098,5.80738766,181.28,181.21,6.48738766]
[1761851838304,0.71,181.3,181.22,6.48738766]
[1761851838305,5.80738766,181.29,181.22,6.48738766]
[1761851838801,5.80738766,181.25,181.2,20.592]
[1761851839235,5.80738766,181.25,181.21,0.68]
[1761851839418,5.80738766,181.25,181.19,0.68]
[1761851839614,5.80738766,181.25,181.19,21.272]
[1761851839817,25.11879793,181.24,181.19,21.272]
[1761851840429,19.31141027,181.24,181.2,0.68]
[1761851840803,19.31141027,181.24,181.2,62.38]
[1761851841005,19.31141027,181.24,181.2,61.7]
[1761851841221,20.02141027,181.24,181.2,61.7]
[1761851841615,25.82879793,181.24,181.2,61.7]
[1761851842025,6.51738766,181.23,181.2,61.7]
[1761851842331,5.80738766,181.21,181.17,61.7]
[1761851842517,5.80738766,181.2,181.17,61.7]
[1761851842935,5.80738766,181.2,181.16,6.89098999]
[1761851843134,5.80738766,181.19,181.16,6.89098999]
[1761851843516,6.51738766,181.19,181.16,6.89098999]
[1761851844025,5.51967765,181.17,181.14,1e-08]
[1761851844235,36.18821535,181.15,181.14,1e-08]
[1761851844719,36.89821535,181.15,181.14,1e-08]
[1761851845138,40.93166243,181.15,181.14,1e-08]
[1761851846008,46.45194948,181.15,181.14,1e-08]
[1761851847232,46.45194948,181.15,181.03,21.272]
[1761851847233,9.78882769,181.14,181.03,21.272]
[1761851847428,5.80738766,181.08,181.04,0.68]
[1761851848034,19.32954105,181.07,181.04,0.68]
[1761851848234,5.52211607,181.09,181.04,0.68]
[1761851848538,11.32950373,181.09,181.04,0.68]
[1761851848744,11.32950373,181.09,180.98,13.91363723]
[1761851848745,0.71,181.08,180.98,0.78]
[1761851848926,5.80738766,181.02,180.98,0.78]
[1761851849115,5.80738766,181.01,180.98,0.78]
[1761851849438,5.80738766,181.02,180.98,0.78]
[1761851849637,5.80738766,181.03,180.99,0.68]
[1761851850062,5.52425146,181.02,181.0,50.68]
[1761851850363,5.52398213,181.03,181.01,0.68]
[1761851850719,5.52361723,181.05,181.01,0.68]
[1761851851127,5.80738766,181.04,181.0,50.0]
[1761851851326,6.51738766,181.04,181.0,50.0]
[1761851851721,5.80738766,181.04,181.0,50.0]
[1761851851921,5.80738766,181.04,181.01,0.68]
[1761851852120,5.80738766,181.02,181.0,50.0]
[1761851852346,5.80738766,181.01,181.0,50.0]
[1761851854026,11.33194431,181.01,181.0,50.0]
[1761851854217,6.23455665,181.01,181.0,50.0]
[1761851854419,6.23455665,181.01,180.98,0.1]
[1761851854420,35.64216363,181.01,180.98,0.1]
[1761851854619,0.71,181.0,180.98,0.1]
[1761851854844,5.80738766,181.0,180.98,0.1]
[1761851855123,19.33594828,181.01,180.98,0.1]
[1761851855431,5.80738766,180.99,180.98,0.1]
[1761851855943,20.04594828,181.01,180.98,0.1]
[1761851856116,5.80738766,180.99,180.98,0.1]
[1761851856723,6.51738766,180.99,180.98,0.1]
[1761851856923,19.33594828,181.01,180.98,0.1]
[1761851857135,25.14333594,181.01,180.98,0.1]
[1761851857736,19.33594828,181.01,180.98,0.78]
[1761851857938,5.52417938,181.03,180.98,6.58738766]
[1761851858150,5.80738766,181.06,181.01,5.80738766]
[1761851858560,5.80738766,181.06,181.02,0.68]
[1761851858966,25.13714864,181.07,181.02,0.68]
[1761851859169,19.32976098,181.07,181.02,0.68]
[1761851859466,6.48738766,181.06,181.0,5.80738766]
[1761851859626,5.80738766,181.06,181.0,6.49738766]
[1761851860082,5.52333609,181.05,181.01,6.49738766]
[1761851860661,5.52333609,181.05,181.02,6.49738766]
[1761851860838,5.52333609,181.05,181.03,6.49738766]
[1761851861384,10.46882769,181.1,181.04,6.49738766]
[1761851861385,5.52242102,181.08,181.04,6.49738766]
[1761851861661,5.52242102,181.08,181.05,5.80738766]
[1761851861838,5.52242102,181.08,181.05,6.49738766]
[1761851862040,19.61200701,181.1,181.06,0.69]
[1761851862041,13.80461935,181.1,181.06,0.69]
[1761851862282,5.52181115,181.1,181.06,0.69]
[1761851862669,5.52181115,181.1,181.06,6.49738766]
[1761851862845,5.52181115,181.1,181.08,5.80738766]
[1761851863044,5.52181115,181.1,181.07,6.49738766]
[1761851863566,5.52137308,181.12,181.08,0.69]
[1761851863887,5.52137308,181.12,181.07,5.80738766]
[1761851863888,19.32437661,181.12,181.07,5.80738766]
[1761851864061,5.5205918,181.14,181.09,5.80738766]
[1761851864255,5.5205918,181.14,181.08,0.69]
[1761851864256,5.5205918,181.14,181.1,5.80738766]
[1761851864569,5.5205918,181.14,181.11,5.80738766]
[1761851864947,5.80738766,181.17,181.12,6.49738766]
[1761851865352,19.99993817,181.16,181.11,5.80738766]
[1761851865944,25.80732583,181.16,181.11,5.80738766]
[1761851866371,5.5205918,181.14,181.11,5.80738766]
[1761851866574,5.80738766,181.12,181.04,20.592]
[1761851866739,5.80738766,181.12,181.06,5.80738766]
[1761851866943,6.48738766,181.13,181.07,5.80738766]
[1761851867145,6.48738766,181.13,181.05,0.69]
[1761851867146,6.48738766,181.13,181.08,5.80738766]
[1761851867348,5.80738766,181.13,181.08,5.80738766]
[1761851867546,5.80738766,181.13,181.09,0.69]
[1761851867783,5.5205918,181.14,181.11,5.80738766]
[1761851868258,5.80738766,181.12,181.04,0.69]
[1761851868466,5.52181115,181.1,181.05,6.49738766]
[1761851868674,5.52181115,181.1,181.06,5.80738766]
[1761851868984,5.52181115,181.1,181.06,6.49738766]
[1761851869143,12.00919881,181.1,181.03,0.69]
[1761851869475,5.80738766,181.09,181.04,5.80738766]
[1761851869861,25.81372669,181.1,181.05,0.69]
[1761851870255,5.80738766,181.08,181.01,0.69]
[1761851870460,5.52333609,181.05,181.01,0.69]
[1761851871080,19.33167632,181.05,181.01,0.69]
[1761851871367,5.52333609,181.05,181.01,0.69]
[1761851871569,5.52333609,181.05,181.02,5.80738766]
[1761851871945,19.61376477,181.08,181.03,0.69]
[1761851871946,5.52272601,181.07,181.03,0.69]
[1761851872149,5.80738766,181.06,181.01,5.80738766]
[1761851872350,5.80738766,181.06,180.98,0.1]
[1761851872351,5.5239463,181.03,180.98,0.79]
[1761851872551,11.33133396,181.03,180.98,0.1]
[1761851872775,0.68,181.02,180.98,0.1]
[1761851872978,6.48738766,181.02,180.98,0.1]
[1761851873162,5.80738766,181.01,180.98,0.1]
[1761851873367,5.80738766,181.0,180.98,0.1]
[1761851873750,6.48738766,181.01,180.98,0.1]
[1761851873977,5.80738766,181.02,180.98,0.1]
[1761851874178,6.48738766,181.02,180.98,0.1]
[1761851874473,11.33224953,181.0,180.98,0.1]
[1761851874772,5.80738766,180.99,180.98,0.1]
[1761851874974,6.48738766,180.99,180.98,0.1]
[1761851875281,11.33224953,181.0,180.98,0.1]
[1761851875662,5.52486187,181.0,180.98,0.1]
[1761851875985,37.40824061,181.04,180.98,0.1]
[1761851875986,11.33133396,181.03,180.98,6.59738766]
[1761851876191,25.14119972,181.03,180.98,0.1]
[1761851876479,25.82119972,181.03,180.98,0.79]
[1761851876667,19.33381206,181.03,180.99,5.80738766]
[1761851876869,19.33381206,181.03,180.99,6.49738766]
[1761851877369,0.68,181.02,180.98,0.1]
[1761851877885,25.14119972,181.03,180.98,0.79]
[1761851878059,25.14119972,181.03,180.98,6.59738766]
[1761851878060,25.82119972,181.03,180.98,6.59738766]
[1761851878262,6.2039463,181.03,180.98,6.59738766]
[1761851878468,5.5239463,181.03,180.99,0.69]
[1761851878676,6.2039463,181.03,180.98,0.79]
[1761851878871,6.2039463,181.03,180.98,6.59738766]
[1761851879078,5.5239463,181.03,180.99,5.80738766]
[1761851879479,5.5239463,181.03,180.99,6.49738766]
[1761851879679,5.5239463,181.03,180.98,5.90738766]
[1761851879680,20.01381206,181.03,180.98,5.90738766]
[1761851879880,20.01381206,181.03,180.98,6.59738766]
[1761851880063,25.82119972,181.03,180.98,6.59738766]
[1761851880262,6.20357077,181.05,180.98,6.59738766]
[1761851880466,5.52425146,181.02,180.98,0.1]
[1761851880686,25.14226777,181.02,180.98,0.1]
[1761851880867,19.33488011,181.02,180.98,0.1]
[1761851881068,25.82226777,181.02,180.99,20.592]
[1761851881268,0.68,181.01,180.98,20.692]
[1761851881881,5.80738766,180.99,180.98,0.1]
[1761851882256,6.48738766,180.99,180.98,0.1]
[1761851882468,13.81062865,181.02,180.98,0.1]
[1761851882671,5.52455665,181.01,180.98,0.1]
[1761851882871,5.80738766,181.07,181.01,20.592]
[1761851883095,5.52272601,181.07,181.01,21.282]
[1761851883582,0.68,181.11,181.06,5.80738766]
[1761851883788,4.0381482,181.12,181.07,5.80738766]
[1761851883967,25.12732583,181.16,181.07,0.69]
[1761851884158,25.12732583,181.16,181.11,5.80738766]
[1761851884159,4.03867401,181.15,181.11,5.80738766]
[1761851884484,5.52089659,181.13,181.1,20.592]
[1761851884859,6.20089659,181.13,181.1,20.592]
[1761851885055,0.68,181.12,181.08,5.80738766]
[1761851885259,10.53384293,181.12,181.07,20.592]
[1761851885477,4.04645527,181.11,181.07,20.592]
[1761851885672,6.48738766,181.12,181.07,5.80738766]
[1761851885871,6.48738766,181.12,181.08,5.80738766]
[1761851885872,0.68,181.12,181.08,5.80738766]
[1761851886074,5.52028705,181.15,181.11,5.80738766]
[1761851886367,4.05799942,181.14,181.1,26.39938766]
[1761851886567,19.32313807,181.13,181.11,20.592]
[1761851886868,4.05799942,181.12,181.11,20.592]
[1761851887187,4.05799942,181.12,181.07,5.80738766]
[1761851887188,10.54538708,181.12,181.07,5.80738766]
[1761851887376,4.05799942,181.11,181.07,5.80738766]
[1761851887584,0.68,181.11,181.06,5.80738766]
[1761851887774,5.80738766,181.13,181.07,5.80738766]
[1761851888086,6.48738766,181.14,181.08,26.39938766]
[1761851888295,5.80738766,181.12,181.08,20.592]
[1761851888787,5.52150626,181.11,181.08,20.592]
[1761851888982,27.59991168,181.16,181.08,27.08938766]
[1761851888983,5.80738766,181.14,181.08,27.08938766]
[1761851889281,5.80738766,181.14,181.08,26.39938766]
[1761851889484,0.7,181.13,181.08,26.39938766]
[1761851889987,25.82898179,181.15,181.09,6.46738766]
[1761851890184,20.02159413,181.15,181.1,5.80738766]
[1761851890591,0.7,181.14,181.09,6.46738766]
[1761851890763,5.52089659,181.13,181.08,26.39938766]
[1761851891090,11.32828425,181.13,181.08,20.592]
[1761851891287,5.52062943,181.14,181.08,20.592]
[1761851891487,6.50738766,181.13,181.08,20.592]
[1761851891675,5.80738766,181.12,181.08,20.592]
[1761851891859,5.80738766,181.11,181.05,5.80738766]
[1761851892064,6.50738766,181.11,181.05,5.80738766]
[1761851892276,0.7,181.1,181.06,20.592]
[1761851892684,5.52211607,181.09,181.05,5.80738766]
[1761851892898,11.32950373,181.09,181.05,20.592]
[1761851893105,5.80738766,181.07,181.01,5.80738766]
[1761851893263,0.7,181.08,181.0,6.46738766]
[1761851893264,5.80738766,181.06,181.0,6.46738766]
[1761851893577,5.80738766,181.07,181.04,20.592]
[1761851894106,5.52211607,181.09,181.05,6.46738766]
[1761851894273,1.99999999,181.21,181.05,6.46738766]
[1761851894274,5.5205918,181.14,181.08,26.39938766]
[1761851894591,5.5205918,181.14,181.09,5.80738766]
[1761851894592,19.32207131,181.14,181.09,5.80738766]
[1761851894768,19.32207131,181.14,181.08,20.592]
[1761851894769,6.50738766,181.13,181.08,20.592]
[1761851894973,6.50738766,181.13,181.02,13.81016653]
[1761851894974,5.80738766,181.11,181.06,20.592]
[1761851895479,8.8488836,181.12,181.06,29.4408836]
[1761851895685,0.69,181.11,181.06,29.4408836]
[1761851895972,0.69,181.11,181.06,20.592]
[1761851896284,8.8488836,181.1,181.06,20.592]
[1761851896593,5.52181115,181.1,181.06,20.592]
[1761851896894,9.5388836,181.09,181.04,21.252]
[1761851897191,8.8488836,181.09,181.04,21.252]
[1761851897379,19.32633903,181.1,181.05,0.66]
[1761851897796,20.01633903,181.1,181.05,0.66]
[1761851898090,5.52181115,181.1,181.05,0.66]
[1761851898308,5.52181115,181.1,181.05,9.5088836]
[1761851898493,20.01633903,181.1,181.05,9.5088836]
[1761851898789,28.86522263,181.1,181.05,0.66]
[1761851898999,5.5205918,181.14,181.08,8.8488836]
[1761851899171,5.5205918,181.14,181.09,8.8488836]
[1761851899572,5.5205918,181.14,181.09,9.5088836]
[1761851899773,5.5205918,181.14,181.1,0.66]
[1761851899974,5.5205918,181.14,181.09,8.8488836]
[1761851899975,28.86095491,181.14,181.08,8.8488836]
[1761851900502,5.5205918,181.14,181.1,8.8488836]
[1761851900802,5.52028705,181.15,181.11,20.592]
[1761851900989,5.52028705,181.15,181.11,21.252]
[1761851901298,2.88044278,181.16,181.11,20.592]
[1761851901470,8.8488836,181.19,181.13,8.8488836]
[1761851901669,8.8488836,181.16,181.12,20.592]
[1761851901864,8.8488836,181.15,181.12,20.592]
[1761851902095,8.8488836,181.13,181.1,20.592]
[1761851902284,8.8488836,181.13,181.08,20.592]
[1761851902490,8.8488836,181.13,181.1,20.592]
[1761851903000,5.52120141,181.12,181.08,20.592]
[1761851903183,6.21120141,181.12,181.08,20.592]
[1761851903392,14.37008501,181.12,181.08,20.592]
[1761851903571,14.37008501,181.12,181.09,20.592]
[1761851904076,0.69,181.14,181.09,21.252]
[1761851904269,9.5388836,181.14,181.09,21.252]
[1761851904871,5.52061458,181.14,181.11,20.592]
[1761851905072,15.05949818,181.14,181.11,20.592]
[1761851905295,8.8488836,181.13,181.11,20.592]
[1761851905494,9.5388836,181.13,181.08,0.66]
[1761851905798,8.8488836,181.12,181.08,0.66]
[1761851905969,9.5388836,181.13,181.08,0.66]
[1761851906580,8.8488836,181.12,181.08,0.66]
[1761851906783,5.52150626,181.11,181.07,20.592]
[1761851907183,5.52150626,181.11,181.08,0.66]
[1761851907386,8.8488836,181.13,181.08,0.66]
[1761851907894,9.5388836,181.13,181.08,0.66]
[1761851908095,5.52133059,181.12,181.08,0.66]
[1761851908304,14.37021419,181.12,181.07,20.592]
[1761851908488,5.52133059,181.12,181.07,26.11471167]
[1761851908676,5.52133059,181.12,181.08,0.66]
[1761851908998,8.8488836,181.16,181.1,29.4408836]
[1761851909298,28.85851608,181.17,181.11,20.592]
[1761851909599,8.8488836,181.14,181.11,20.592]
[1761851909787,8.8488836,181.13,181.1,20.592]
[1761851910147,8.8488836,181.13,180.99,11.44]
[1761851910148,8.8488836,181.12,181.08,20.592]
[1761851910291,8.8488836,181.11,181.08,20.592]
[1761851911000,5.52181115,181.1,181.07,20.592]
[1761851911201,8.8488836,181.09,181.05,0.66]
[1761851911571,28.86522263,181.1,181.06,20.592]
[1761851911901,5.52181115,181.1,181.06,20.592]
[1761851912088,5.52153629,181.11,181.07,0.66]
[1761851912674,5.52127074,181.12,181.08,29.4408836]
[1761851912891,8.8488836,181.15,181.09,8.8488836]
[1761851913178,5.52028705,181.15,181.11,20.592]
[1761851913487,5.52028705,181.15,181.11,29.4408836]
[1761851913697,5.52028705,181.15,181.13,20.592]
[1761851914105,14.36917065,181.15,181.1,20.592]
[1761851914304,14.36917065,181.15,181.09,8.8488836]
[1761851914509,5.52028705,181.15,181.11,0.66]
[1761851915002,28.16882177,181.16,181.11,0.66]
[1761851915511,19.31993817,181.16,181.11,9.5088836]
[1761851915820,5.51937299,181.18,181.14,20.592]
[1761851916003,5.51937299,181.18,181.14,29.4408836]
[1761851916197,5.51937299,181.18,181.14,21.252]
[1761851916411,14.36825659,181.18,181.14,0.66]
[1761851916815,5.51937299,181.18,181.14,0.66]
[1761851917822,19.31780548,181.18,181.14,0.66]
[1761851918122,20.00780548,181.18,181.13,8.8488836]
[1761851918291,20.00780548,181.18,181.13,9.5088836]
[1761851918493,6.20937299,181.18,181.13,9.5088836]
[1761851918693,5.51937299,181.18,181.14,0.66]
[1761851919790,5.51910391,181.19,181.16,20.592]
[1761851919997,5.51910391,181.19,181.16,29.4408836]
[1761851920220,5.51910391,181.19,181.16,20.592]
[1761851920611,5.51910391,181.19,181.16,21.282]
[1761851920910,5.51845924,181.21,181.18,8.8488836]
[1761851921106,5.51845924,181.21,181.19,0.69]
[1761851921328,19.31354154,181.22,181.17,29.4408836]
[1761851921545,0.69,181.21,181.17,20.592]
[1761851921831,2.87993888,181.25,181.2,8.8488836]
[1761851922021,9.5388836,181.27,181.21,29.4408836]
[1761851922220,8.8488836,181.25,181.22,20.592]
[1761851922411,8.8488836,181.24,181.22,20.592]
[1761851922820,8.8488836,181.26,181.22,20.592]
[1761851923331,5.51724137,181.25,181.22,20.592]
[1761851923740,20.00034481,181.25,181.22,20.592]
[1761851924034,0.69,181.24,181.22,20.592]
[1761851925156,8.8488836,181.23,181.18,30.1308836]
[1761851925333,5.51815472,181.22,181.18,29.4408836]
[1761851925653,6.20815472,181.22,181.18,29.4408836]
[1761851926444,5.51815472,181.22,181.18,30.1308836]
[1761851926615,6.20815472,181.22,181.18,30.1308836]
[1761851927009,20.00354154,181.22,181.18,30.1308836]
[1761851927219,9.5388836,181.21,181.15,9.5388836]
[1761851927429,9.5388836,181.21,181.15,8.8488836]
[1761851927430,28.16455688,181.2,181.15,8.8488836]
[1761851927630,28.85455688,181.2,181.15,8.8488836]
[1761851927942,28.85455688,181.2,181.16,20.592]
[1761851928115,28.16455688,181.2,181.16,20.592]
[1761851928314,0.69,181.19,181.17,20.592]
[1761851928925,9.78882769,181.22,181.15,8.8488836]
[1761851929247,8.8488836,181.2,181.14,1.0]
[1761851929450,14.36764739,181.2,181.14,30.4408836]
[1761851929818,15.05764739,181.2,181.14,31.1308836]
[1761851930048,28.85455688,181.2,181.14,31.1308836]
[1761851930347,9.5388836,181.19,181.14,1.0]
[1761851930653,8.8488836,181.17,181.14,1.0]
[1761851931150,9.5388836,181.17,181.14,1.0]
[1761851931323,5.51998233,181.16,181.14,1.0]
[1761851931641,5.51998233,181.16,181.14,31.1308836]
[1761851931812,5.51998233,181.16,181.14,21.592]
[1761851932016,5.51998233,181.16,181.15,20.592]
[1761851933516,19.31887177,181.17,181.14,1.0]
[1761851933722,28.85775537,181.17,181.14,1.0]
[1761851934231,20.00887177,181.17,181.14,1.0]
[1761851934744,0.69,181.16,181.14,21.592]
[1761851935437,5.52028705,181.15,181.14,21.592]
[1761851937525,4.57719983,181.26,181.14,21.592]
[1761851937727,8.8488836,181.18,181.14,22.282]
[1761851938229,9.5388836,181.18,181.14,21.592]
[1761851938838,0.69,181.18,181.14,21.592]
[1761851939649,5.51967765,181.17,181.14,21.592]
[1761851940947,0.69,181.16,181.15,20.592]
[1761851941169,9.5388836,181.16,181.14,1.0]
[1761851941336,8.8488836,181.15,181.14,1.0]
[1761851941531,15.05917065,181.15,181.14,1.0]
[1761851943026,24.84799834,181.15,181.14,1.0]
[1761851943435,24.84799834,181.15,181.14,1e-08]
[1761851945138,15.99911474,181.15,181.14,1e-08]
[1761851945457,5.52028705,181.15,181.14,1e-08]
[1761851945827,24.84799834,181.15,181.14,1e-08]
[1761851952557,27.73519485,181.15,181.14,1e-08]
[1761851952750,18.88631125,181.15,181.14,1e-08]
[1761851952964,8.40748356,181.15,181.14,1e-08]
[1761851953160,5.52028705,181.15,181.14,1e-08]
[1761851953863,9.78882769,181.15,181.14,1e-08]
[1761851954043,19.31771129,181.15,181.14,1e-08]
[1761851955847,24.83799834,181.15,181.14,1e-08]
[1761851956060,24.15799834,181.15,181.14,1e-08]
[1761851956654,24.85799834,181.15,181.14,1e-08]
[1761851957664,21.8313218,181.15,181.14,1e-08]
[1761851957865,21.1313218,181.15,181.14,1e-08]
[1761851958161,21.8313218,181.15,181.14,1e-08]
[1761851958466,21.1313218,181.15,181.14,1e-08]
[1761851958653,21.8313218,181.15,181.14,1e-08]
[1761851959570,18.29578108,181.15,181.14,1e-08]
[1761851959952,15.30911474,181.15,181.14,1e-08]
[1761851960166,17.59578108,181.15,181.14,1e-08]
[1761851960365,15.30911474,181.15,181.14,1e-08]
[1761851960570,17.59578108,181.15,181.14,1e-08]
[1761851961266,18.29578108,181.15,181.14,1e-08]
[1761851961461,17.59578108,181.15,181.14,1e-08]
[1761851961666,18.29578108,181.15,181.14,1e-08]
[1761851965676,21.83413095,181.15,181.14,1e-08]
[1761851969664,9.78882769,181.11,181.04,0.66]
[1761851969850,5.82501621,181.06,181.04,0.66]
[1761851970053,5.82501621,181.05,181.02,0.66]
[1761851970262,5.82501621,181.05,181.02,62.36]
[1761851970461,5.82501621,181.04,181.02,0.66]
[1761851971285,9.78882769,181.11,181.02,0.66]
[1761851971486,47.62243995,181.15,181.06,5.82501621]
[1761851971663,5.82501621,181.14,181.08,5.82501621]
[1761851971857,5.82501621,181.13,181.09,0.66]
[1761851972059,5.82501621,181.13,181.07,21.252]
[1761851972060,5.82501621,181.11,181.07,21.252]
[1761851972461,5.82501621,181.11,181.08,0.66]
[1761851973152,5.82501621,181.1,181.06,20.592]
[1761851973357,5.82501621,181.08,181.06,0.66]
[1761851973553,5.52272601,181.07,181.06,0.66]
[1761851973956,5.52250463,181.08,181.06,0.66]
[1761851974585,5.52250463,181.08,181.06,21.252]
[1761851975085,5.52250463,181.08,181.07,0.66]
[1761851975674,19.32633903,181.1,181.07,0.66]
[1761851975988,5.82501621,181.09,181.06,20.592]
[1761851976168,5.82501621,181.08,181.04,0.66]
[1761851976371,5.82501621,181.08,181.04,21.252]
[1761851976586,5.82501621,181.08,181.05,0.66]
[1761851977279,5.82501621,181.07,181.05,0.66]
[1761851977485,5.82501621,181.06,181.02,0.66]
[1761851977664,11.3483523,181.05,181.02,62.36]
[1761851977861,25.15669253,181.05,181.02,62.36]
[1761851978059,25.15669253,181.05,181.03,0.66]
[1761851979584,19.33167632,181.05,181.03,0.66]
[1761851979769,5.52333609,181.05,181.03,0.66]
[1761851982088,11.3483523,181.05,181.03,0.66]
[1761851982481,5.52333609,181.05,181.03,62.36]
[1761851983080,5.52333609,181.05,181.03,61.7]
[1761851983283,5.52333609,181.05,181.04,0.66]
[1761851985786,5.52333609,181.05,181.02,0.66]
[1761851986084,5.52333609,181.05,181.02,21.252]
[1761851986085,11.3483523,181.05,181.02,21.252]
[1761851986478,11.3483523,181.05,181.02,20.592]
[1761851986684,19.33167632,181.05,181.03,0.66]
[1761851986985,19.33167632,181.05,181.02,21.252]
[1761851987158,25.15669253,181.05,181.02,21.252]
[1761851987362,21.62049078,181.05,181.02,21.252]
[1761851987771,21.62049078,181.05,181.03,0.66]
[1761851988392,13.80834023,181.05,181.03,0.66]
[1761851988890,16.09715469,181.05,181.02,20.592]
[1761851989089,16.09715469,181.05,181.02,0.66]
[1761851989293,7.81184549,181.06,181.03,0.66]
[1761851989488,5.52303103,181.06,181.03,0.66]
[1761851990391,5.52303103,181.06,181.03,62.36]
[1761851990777,21.61942308,181.06,181.03,61.7]
[1761851991094,2.28881446,181.05,181.03,61.7]
[1761851991480,2.28881446,181.05,181.03,62.36]
[1761851991789,7.81164573,181.07,181.04,0.66]
[1761851991987,5.52249695,181.08,181.06,20.592]
[1761851992501,7.81131141,181.08,181.06,20.592]
[1761851992706,7.81131141,181.08,181.06,21.252]
[1761851993196,5.52249695,181.08,181.06,21.252]
[1761851993393,7.81090263,181.1,181.07,0.66]
[1761851994293,2.28881446,181.09,181.07,0.66]
[1761851996196,5.52242102,181.08,181.06,20.592]
[1761851996496,5.52242102,181.08,181.06,21.252]
[1761851996701,7.81101105,181.09,181.07,0.66]
[1761851997010,7.81067438,181.1,181.07,0.66]
[1761851997372,7.81067438,181.1,181.06,20.592]
[1761851997983,7.81067438,181.1,181.07,0.66]
[1761851998990,7.81067438,181.1,181.06,20.592]
[1761851999188,21.61520226,181.1,181.06,21.252]
[1761851999390,2.28881446,181.09,181.06,21.252]
[1761852000100,2.28881446,181.07,181.04,20.592]
[1761852000412,2.28881446,181.05,181.0,0.66]
[1761852000577,0.67,181.06,181.0,0.66]
[1761852000578,2.28881446,181.04,181.0,0.66]
[1761852001180,5.5239463,181.03,181.0,0.66]
[1761852001905,5.5239463,181.03,181.01,20.592]
[1761852002102,21.62262652,181.03,180.98,0.1]
[1761852002278,2.28881446,181.02,180.98,0.76]